[Event "*** Titled Tuesday Blitz"]
[Site "Chess.com"]
[Date "2018.12.04"]
[Round "6"]
[White "Parhamov"]
[Black "Guenplen"]
[Result "0-1"]
[WhiteElo "2844"]
[BlackElo "2839"]
[TimeControl "180+2"]
[EndTime "14:23:19 PST"]
[Termination "Guenplen won by resignation"]

1. Nf3 {[%clk 0:02:59.8]} 1... d5 {[%clk 0:02:59]} 2. g3 {[%clk 0:03:00.9]} 2...
Bg4 {[%clk 0:02:59.7]} 3. Bg2 {[%clk 0:03:01.3]} 3... c6 {[%clk 0:03:00.7]} 4.
O-O {[%clk 0:03:02.6]} 4... e6 {[%clk 0:02:56.8]} 5. d3 {[%clk 0:03:03.7]} 5...
Nf6 {[%clk 0:02:54.1]} 6. Nbd2 {[%clk 0:03:02.5]} 6... Nbd7 {[%clk 0:02:48]} 7.
Qe1 {[%clk 0:03:03]} 7... Be7 {[%clk 0:02:40.1]} 8. Nh4 {[%clk 0:02:44.6]} 8...
O-O {[%clk 0:02:37.7]} 9. f4 {[%clk 0:02:36.6]} 9... Ne8 {[%clk 0:02:30.8]} 10.
h3 {[%clk 0:02:28.8]} 10... Bh5 {[%clk 0:02:24.6]} 11. e4 {[%clk 0:02:15.7]}
11... Bxh4 {[%clk 0:02:22.2]} 12. gxh4 {[%clk 0:02:16.8]} 12... dxe4 {[%clk
0:02:17.1]} 13. dxe4 {[%clk 0:02:16.8]} 13... e5 {[%clk 0:02:18.4]} 14. Nc4
{[%clk 0:02:13.4]} 14... Qe7 {[%clk 0:02:02.8]} 15. fxe5 {[%clk 0:02:07.7]}
15... Nc7 {[%clk 0:01:31.4]} 16. b3 {[%clk 0:01:56.1]} 16... b5 {[%clk
0:01:28.2]} 17. Ba3 {[%clk 0:01:55.1]} 17... c5 {[%clk 0:01:28.5]} 18. Ne3
{[%clk 0:01:55.5]} 18... b4 {[%clk 0:00:58.9]} 19. Bb2 {[%clk 0:01:56.4]} 19...
Ne6 {[%clk 0:00:50.5]} 20. Nf5 {[%clk 0:01:42.7]} 20... Qd8 {[%clk 0:00:51.1]}
21. Qg3 {[%clk 0:01:43.6]} 21... c4 {[%clk 0:00:37.9]} 22. bxc4 {[%clk
0:01:30.2]} 22... Ndc5 {[%clk 0:00:39.1]} 23. Rf2 {[%clk 0:01:19.8]} 23... Na4
{[%clk 0:00:39.6]} 24. Bc1 {[%clk 0:01:19.4]} 24... Nc3 {[%clk 0:00:37.1]} 25.
Bh6 {[%clk 0:01:14.6]} 25... Bg6 {[%clk 0:00:29.7]} 26. Be3 {[%clk 0:01:15.4]}
26... h5 {[%clk 0:00:27.9]} 27. Raf1 {[%clk 0:01:11.6]} 27... Qc7 {[%clk
0:00:22.6]} 28. Nd6 {[%clk 0:01:06.4]} 28... a5 {[%clk 0:00:18.7]} 29. a3 {[%clk
0:00:51.2]} 29... bxa3 {[%clk 0:00:11.7]} 30. Bc1 {[%clk 0:00:52.2]} 30... Nb1
{[%clk 0:00:10.7]} 31. Bxa3 {[%clk 0:00:52]} 31... Nxa3 {[%clk 0:00:11.4]} 32.
Qxa3 {[%clk 0:00:53.6]} 32... Qc5 {[%clk 0:00:11.3]} 33. Qxc5 {[%clk 0:00:46.3]}
33... Nxc5 {[%clk 0:00:13.2]} 34. Rd2 {[%clk 0:00:40.6]} 34... a4 {[%clk
0:00:14.1]} 35. Rd5 {[%clk 0:00:41.4]} 35... Ne6 {[%clk 0:00:14.2]} 36. Kf2
{[%clk 0:00:37.6]} 36... a3 {[%clk 0:00:15.1]} 37. Ke3 {[%clk 0:00:37.8]} 37...
Rfb8 {[%clk 0:00:16.3]} 38. Ra1 {[%clk 0:00:33.8]} 38... Rb2 {[%clk 0:00:16.1]}
39. Rd2 {[%clk 0:00:10.8]} 39... a2 {[%clk 0:00:09.1]} 40. c3 {[%clk 0:00:05.2]}
40... Rxd2 {[%clk 0:00:09.8]} 41. Kxd2 {[%clk 0:00:06.6]} 41... Nc5 {[%clk
0:00:11.7]} 42. Kc2 {[%clk 0:00:08.1]} 42... Ra6 {[%clk 0:00:10]} 43. Nf5 {[%clk
0:00:09]} 43... Kf8 {[%clk 0:00:09]} 44. Ng3 {[%clk 0:00:09]} 44... f6 {[%clk
0:00:06.2]} 45. Bf3 {[%clk 0:00:03.1]} 45... fxe5 {[%clk 0:00:06.3]} 46. Bxh5
{[%clk 0:00:04.6]} 46... Bxh5 {[%clk 0:00:06.8]} 47. Nxh5 {[%clk 0:00:06.5]}
47... Rg6 {[%clk 0:00:07.1]} 48. Rxa2 {[%clk 0:00:06.4]} 48... Rg2+ {[%clk
0:00:07.9]} 49. Kb1 {[%clk 0:00:07.7]} 49... Rg1+ {[%clk 0:00:06.9]} 50. Kb2
{[%clk 0:00:09]} 50... Rg2+ {[%clk 0:00:07.2]} 51. Ka3 {[%clk 0:00:10.1]} 51...
Rxa2+ {[%clk 0:00:06.2]} 52. Kxa2 {[%clk 0:00:11.4]} 52... Nxe4 {[%clk
0:00:08.1]} 53. c5 {[%clk 0:00:12.2]} 53... g6 {[%clk 0:00:07.9]} 54. Kb3 {[%clk
0:00:02.4]} 54... gxh5 {[%clk 0:00:06.9]} 55. Kc4 {[%clk 0:00:03.9]} 55... Nf6
{[%clk 0:00:06.9]} 56. c6 {[%clk 0:00:04.9]} 56... Ke7 {[%clk 0:00:08.3]} 57.
Kc5 {[%clk 0:00:06.2]} 57... Kd8 {[%clk 0:00:08.7]} 58. Kb6 {[%clk 0:00:05.5]}
58... Kc8 {[%clk 0:00:09.6]} 59. Kc5 {[%clk 0:00:06.4]} 59... Kc7 {[%clk
0:00:10.9]} 60. c4 {[%clk 0:00:07.7]} 60... e4 {[%clk 0:00:11.3]} 61. Kd4 {[%clk
0:00:09]} 61... Kxc6 {[%clk 0:00:12.7]} 0-1

[Event "*** Titled Tuesday Blitz"]
[Site "Chess.com"]
[Date "2018.12.04"]
[Round "6"]
[White "vinniethepooh"]
[Black "TheBigBadChessDad"]
[Result "1/2-1/2"]
[WhiteElo "2406"]
[BlackElo "2275"]
[TimeControl "180+2"]
[EndTime "14:23:29 PST"]
[Termination "Game drawn by agreement"]

1. d4 {[%clk 0:03:01.9]} 1... Nf6 {[%clk 0:03:00.4]} 2. c4 {[%clk 0:03:03.5]}
2... e6 {[%clk 0:03:01.7]} 3. Nc3 {[%clk 0:03:04.8]} 3... Bb4 {[%clk 0:03:02.6]}
4. e3 {[%clk 0:03:06.4]} 4... Bxc3+ {[%clk 0:03:03.4]} 5. bxc3 {[%clk
0:03:07.1]} 5... c5 {[%clk 0:03:05.3]} 6. Bd3 {[%clk 0:03:04.8]} 6... d6 {[%clk
0:03:06.3]} 7. Nf3 {[%clk 0:03:03.2]} 7... Qa5 {[%clk 0:03:00.8]} 8. Qc2 {[%clk
0:02:48.8]} 8... Nc6 {[%clk 0:03:01]} 9. O-O {[%clk 0:02:47.6]} 9... e5 {[%clk
0:03:01.8]} 10. Nd2 {[%clk 0:02:35.7]} 10... Qc7 {[%clk 0:02:43.1]} 11. f4
{[%clk 0:02:21.7]} 11... exd4 {[%clk 0:02:40.4]} 12. exd4 {[%clk 0:02:17.4]}
12... O-O {[%clk 0:02:27.8]} 13. Ne4 {[%clk 0:01:40.9]} 13... Nxe4 {[%clk
0:01:57.8]} 14. Bxe4 {[%clk 0:01:42.8]} 14... f5 {[%clk 0:01:51.4]} 15. Bd5+
{[%clk 0:01:43.3]} 15... Kh8 {[%clk 0:01:52.3]} 16. Be3 {[%clk 0:01:44.6]} 16...
cxd4 {[%clk 0:01:48.7]} 17. cxd4 {[%clk 0:01:45.5]} 17... Nb4 {[%clk 0:01:45.7]}
18. Qb3 {[%clk 0:01:30.3]} 18... Nxd5 {[%clk 0:01:43]} 19. cxd5 {[%clk
0:01:32.2]} 19... Re8 {[%clk 0:01:29.4]} 20. Rac1 {[%clk 0:01:24.4]} 20... Qb6
{[%clk 0:01:26.6]} 21. Rfe1 {[%clk 0:01:13.2]} 21... Bd7 {[%clk 0:01:18.7]} 22.
Rb1 {[%clk 0:00:33.3]} 22... Qxb3 {[%clk 0:01:12.6]} 23. Rxb3 {[%clk 0:00:35.2]}
23... b6 {[%clk 0:01:06.9]} 24. Rc3 {[%clk 0:00:20.2]} 24... Rac8 {[%clk
0:00:59.8]} 25. Bd2 {[%clk 0:00:19]} 25... Rxe1+ {[%clk 0:00:31.6]} 26. Bxe1
{[%clk 0:00:20.9]} 26... Re8 {[%clk 0:00:31]} 27. Kf2 {[%clk 0:00:19.6]} 27...
Bb5 {[%clk 0:00:31.2]} 28. Re3 {[%clk 0:00:16.5]} 28... Rxe3 {[%clk 0:00:28]}
29. Kxe3 {[%clk 0:00:18.4]} 29... Bc4 {[%clk 0:00:29.4]} 30. a3 {[%clk
0:00:14.8]} 30... Bxd5 {[%clk 0:00:30.7]} 31. Bb4 {[%clk 0:00:08.8]} 31... Bxg2
{[%clk 0:00:31.2]} 32. Bxd6 {[%clk 0:00:10.4]} 32... Bd5 {[%clk 0:00:28.5]} 33.
Bb8 {[%clk 0:00:07.3]} 33... a6 {[%clk 0:00:29.8]} 34. Bc7 {[%clk 0:00:08.1]}
34... b5 {[%clk 0:00:31]} 35. Bd6 {[%clk 0:00:09.6]} 35... Kg8 {[%clk
0:00:31.1]} 36. Kd3 {[%clk 0:00:06.7]} 36... Kf7 {[%clk 0:00:31.5]} 37. Kc3
{[%clk 0:00:06.1]} 37... Ke6 {[%clk 0:00:32.5]} 38. Be5 {[%clk 0:00:07.6]} 38...
g6 {[%clk 0:00:33.1]} 39. h4 {[%clk 0:00:07]} 39... Bc4 {[%clk 0:00:33.6]} 40.
Kd2 {[%clk 0:00:04.9]} 40... Kd5 {[%clk 0:00:34.7]} 41. Ke3 {[%clk 0:00:06.5]}
41... a5 {[%clk 0:00:35.4]} 42. Bc7 {[%clk 0:00:05.4]} 42... b4 {[%clk
0:00:35.9]} 43. axb4 {[%clk 0:00:05.3]} 43... axb4 {[%clk 0:00:37.8]} 44. Ba5
{[%clk 0:00:06.6]} 44... b3 {[%clk 0:00:38.9]} 45. Bc3 {[%clk 0:00:08.2]} 45...
Bb5 {[%clk 0:00:37.7]} 46. Bb2 {[%clk 0:00:07.1]} 46... Kc4 {[%clk 0:00:38.8]}
47. Ba1 {[%clk 0:00:08.2]} 47... Bc6 {[%clk 0:00:40]} 48. Bb2 {[%clk 0:00:09]}
48... Be4 {[%clk 0:00:41.3]} 49. Ba1 {[%clk 0:00:10.1]} 49... Kb4 {[%clk
0:00:42.4]} 50. Bb2 {[%clk 0:00:11]} 50... Ka4 {[%clk 0:00:43.4]} 51. Bc1 {[%clk
0:00:11.9]} 51... Kb4 {[%clk 0:00:44.1]} 52. Bb2 {[%clk 0:00:12.8]} 52... Kc4
{[%clk 0:00:45.5]} 53. Ba1 {[%clk 0:00:13.7]} 53... Bd5 {[%clk 0:00:46.7]} 54.
Bb2 {[%clk 0:00:15.1]} 54... Kb4 {[%clk 0:00:47.5]} 55. Kd3 {[%clk 0:00:13.3]}
55... h6 {[%clk 0:00:48.1]} 56. Ke3 {[%clk 0:00:13.3]} 56... Kc4 {[%clk
0:00:47.2]} 57. Ba1 {[%clk 0:00:14.3]} 57... Kb5 {[%clk 0:00:47.7]} 58. Bb2
{[%clk 0:00:14]} 58... Kc6 {[%clk 0:00:49]} 59. Kd3 {[%clk 0:00:13.5]} 59... Kd6
{[%clk 0:00:50.3]} 60. Ke3 {[%clk 0:00:13.6]} 60... Ke6 {[%clk 0:00:51.6]} 61.
Kd3 {[%clk 0:00:13.2]} 61... Kf6 {[%clk 0:00:52.9]} 62. Bc1 {[%clk 0:00:14.6]}
62... Be4+ {[%clk 0:00:50.2]} 63. Kc4 {[%clk 0:00:13.4]} 63... Bc2 {[%clk
0:00:50.7]} 64. d5 {[%clk 0:00:13.2]} 64... Ke7 {[%clk 0:00:51.8]} 65. Kc5
{[%clk 0:00:10.7]} 65... Be4 {[%clk 0:00:50.3]} 66. Kc4 {[%clk 0:00:11.1]} 66...
Kd7 {[%clk 0:00:48.8]} 67. Kxb3 {[%clk 0:00:10.8]} 67... Bxd5+ {[%clk
0:00:49.9]} 68. Kc3 {[%clk 0:00:12.4]} 68... Kc6 {[%clk 0:00:48.5]} 69. Kd4
{[%clk 0:00:13.8]} 69... Bf3 {[%clk 0:00:48.4]} 70. Ke5 {[%clk 0:00:14.4]} 70...
Kc5 {[%clk 0:00:48.1]} 71. Kf6 {[%clk 0:00:14.8]} 71... Bh5 {[%clk 0:00:49.3]}
72. Kg7 {[%clk 0:00:16]} 72... Kd5 {[%clk 0:00:50.6]} 73. Kxh6 {[%clk
0:00:17.1]} 73... Ke4 {[%clk 0:00:52.5]} 74. Kg5 {[%clk 0:00:18.7]} 74... Kf3
{[%clk 0:00:53.7]} 75. Ba3 {[%clk 0:00:19.9]} 75... Ke4 {[%clk 0:00:54.4]} 76.
Be7 {[%clk 0:00:21.4]} 76... Kf3 {[%clk 0:00:53.8]} 1/2-1/2

[Event "*** Titled Tuesday Blitz"]
[Site "Chess.com"]
[Date "2018.12.04"]
[Round "6"]
[White "chidori_boruto"]
[Black "SCIM"]
[Result "0-1"]
[WhiteElo "2545"]
[BlackElo "2441"]
[TimeControl "180+2"]
[EndTime "14:23:35 PST"]
[Termination "SCIM won on time"]

1. d4 {[%clk 0:03:01.9]} 1... Nf6 {[%clk 0:03:00.1]} 2. Nf3 {[%clk 0:03:01.6]}
2... g6 {[%clk 0:03:00.2]} 3. Bg5 {[%clk 0:03:02.2]} 3... Ne4 {[%clk 0:02:51.8]}
4. Bf4 {[%clk 0:02:57]} 4... Bg7 {[%clk 0:02:51.6]} 5. Nbd2 {[%clk 0:02:57.7]}
5... Nxd2 {[%clk 0:02:49.9]} 6. Qxd2 {[%clk 0:02:59.6]} 6... d5 {[%clk
0:02:46.9]} 7. Bh6 {[%clk 0:02:54.2]} 7... O-O {[%clk 0:02:41.6]} 8. h4 {[%clk
0:02:54]} 8... f6 {[%clk 0:02:27.7]} 9. h5 {[%clk 0:02:44.6]} 9... Bxh6 {[%clk
0:02:16.7]} 10. Qxh6 {[%clk 0:02:43.4]} 10... g5 {[%clk 0:02:17.1]} 11. Nxg5
{[%clk 0:02:43.1]} 11... fxg5 {[%clk 0:02:11.8]} 12. Qxg5+ {[%clk 0:02:44]}
12... Kh8 {[%clk 0:02:12.5]} 13. h6 {[%clk 0:02:45]} 13... Rf7 {[%clk
0:02:09.9]} 14. O-O-O {[%clk 0:02:08.7]} 14... Bf5 {[%clk 0:02:06.1]} 15. g4
{[%clk 0:02:06]} 15... Bg6 {[%clk 0:01:55.7]} 16. f4 {[%clk 0:02:00.5]} 16...
Be4 {[%clk 0:01:52.4]} 17. Rh3 {[%clk 0:01:26.1]} 17... Nc6 {[%clk 0:01:48.8]}
18. e3 {[%clk 0:01:19.7]} 18... Qd6 {[%clk 0:01:28.3]} 19. Bd3 {[%clk
0:01:07.4]} 19... Rg8 {[%clk 0:01:27.1]} 20. Qh5 {[%clk 0:01:05.7]} 20... Bxd3
{[%clk 0:01:06.5]} 21. Rxd3 {[%clk 0:00:57.1]} 21... Qe6 {[%clk 0:00:54.6]} 22.
Rg3 {[%clk 0:00:44.4]} 22... Rxf4 {[%clk 0:00:49.4]} 23. exf4 {[%clk 0:00:33]}
23... Qe1+ {[%clk 0:00:49.4]} 24. Rd1 {[%clk 0:00:30.9]} 24... Qxg3 {[%clk
0:00:50.9]} 25. Qxd5 {[%clk 0:00:17.6]} 25... Qxf4+ {[%clk 0:00:49.6]} 26. Kb1
{[%clk 0:00:16.7]} 26... Qxg4 {[%clk 0:00:48.1]} 27. Rf1 {[%clk 0:00:14]} 27...
Qxd4 {[%clk 0:00:37.6]} 28. Qf7 {[%clk 0:00:14.2]} 28... Qe5 {[%clk 0:00:18.4]}
29. a3 {[%clk 0:00:12.8]} 29... Nd8 {[%clk 0:00:17.2]} 30. Qf3 {[%clk 0:00:12]}
30... Ne6 {[%clk 0:00:14.5]} 31. Qxb7 {[%clk 0:00:12]} 31... Qg5 {[%clk
0:00:10.7]} 32. Qc6 {[%clk 0:00:11.7]} 32... Qxh6 {[%clk 0:00:08.2]} 33. Re1
{[%clk 0:00:12.7]} 33... Rg6 {[%clk 0:00:07.7]} 34. Qc3+ {[%clk 0:00:13.2]}
34... Qg7 {[%clk 0:00:07.8]} 35. Qc6 {[%clk 0:00:11]} 35... Nf8 {[%clk
0:00:07.3]} 36. Qxc7 {[%clk 0:00:11.3]} 36... Rg1 {[%clk 0:00:07]} 37. Rxg1
{[%clk 0:00:10.5]} 37... Qxg1+ {[%clk 0:00:08.1]} 38. Ka2 {[%clk 0:00:11.9]}
38... Qg8+ {[%clk 0:00:08.5]} 39. b3 {[%clk 0:00:12.5]} 39... Qg6 {[%clk
0:00:08.8]} 40. Kb2 {[%clk 0:00:11.1]} 40... Qf6+ {[%clk 0:00:09.6]} 41. Ka2
{[%clk 0:00:11.7]} 41... Qf5 {[%clk 0:00:08.8]} 42. Kb2 {[%clk 0:00:12.8]} 42...
Qf6+ {[%clk 0:00:09.6]} 43. Ka2 {[%clk 0:00:13.3]} 43... h5 {[%clk 0:00:11.2]}
44. Qxa7 {[%clk 0:00:13.5]} 44... h4 {[%clk 0:00:12.6]} 45. Qc5 {[%clk
0:00:11.1]} 45... Kg7 {[%clk 0:00:11.6]} 46. Qh5 {[%clk 0:00:11.6]} 46... Ng6
{[%clk 0:00:11.5]} 47. a4 {[%clk 0:00:11.3]} 47... Qc3 {[%clk 0:00:12.1]} 48.
Qe2 {[%clk 0:00:11.5]} 48... Qe5 {[%clk 0:00:11.1]} 49. Qg2 {[%clk 0:00:11.5]}
49... Qg3 {[%clk 0:00:09.8]} 50. Qh1 {[%clk 0:00:10.2]} 50... h3 {[%clk
0:00:10.7]} 51. a5 {[%clk 0:00:11.5]} 51... Qg2 {[%clk 0:00:11.8]} 52. Qd1
{[%clk 0:00:09.3]} 52... h2 {[%clk 0:00:12]} 53. Qd4+ {[%clk 0:00:10.3]} 53...
Kh7 {[%clk 0:00:12.2]} 54. Qd3 {[%clk 0:00:10.1]} 54... h1=Q {[%clk 0:00:11.4]}
55. a6 {[%clk 0:00:10.6]} 55... Qe4 {[%clk 0:00:11.7]} 56. Qc3 {[%clk
0:00:08.8]} 56... Qc6 {[%clk 0:00:11]} 57. Qd3 {[%clk 0:00:07.8]} 57... Qhe4
{[%clk 0:00:10.8]} 58. Qh3+ {[%clk 0:00:07.7]} 58... Kg7 {[%clk 0:00:12]} 59. c4
{[%clk 0:00:08.2]} 59... Qxa6+ {[%clk 0:00:11.4]} 60. Kb2 {[%clk 0:00:08.7]}
60... Qf6+ {[%clk 0:00:13.1]} 61. Ka2 {[%clk 0:00:09.2]} 61... Qa6+ {[%clk
0:00:11.7]} 62. Kb2 {[%clk 0:00:10.5]} 62... Qe5+ {[%clk 0:00:12.8]} 63. Kc2
{[%clk 0:00:10.5]} 63... Qa2+ {[%clk 0:00:13.6]} 64. Kd1 {[%clk 0:00:11.1]}
64... Qb1+ {[%clk 0:00:14.1]} 0-1

[Event "*** Titled Tuesday Blitz"]
[Site "Chess.com"]
[Date "2018.12.04"]
[Round "6"]
[White "ckgchess"]
[Black "Bryakin_Mikhail"]
[Result "1-0"]
[WhiteElo "2598"]
[BlackElo "2714"]
[TimeControl "180+2"]
[EndTime "14:23:40 PST"]
[Termination "ckgchess won by resignation"]

1. e4 {[%clk 0:03:01.9]} 1... c5 {[%clk 0:02:59.3]} 2. Nf3 {[%clk 0:03:02.9]}
2... Nc6 {[%clk 0:03:00.4]} 3. Bb5 {[%clk 0:03:03.5]} 3... g6 {[%clk 0:03:00.8]}
4. Bxc6 {[%clk 0:03:03.8]} 4... dxc6 {[%clk 0:03:02.1]} 5. d3 {[%clk 0:03:05.5]}
5... Bg7 {[%clk 0:03:01.7]} 6. h3 {[%clk 0:03:07.1]} 6... Nh6 {[%clk 0:03:01.4]}
7. Nc3 {[%clk 0:03:05.2]} 7... f6 {[%clk 0:03:02.5]} 8. Be3 {[%clk 0:03:05.9]}
8... b6 {[%clk 0:03:03]} 9. Qd2 {[%clk 0:03:01.2]} 9... Nf7 {[%clk 0:03:03.4]}
10. O-O {[%clk 0:02:58.3]} 10... O-O {[%clk 0:03:04.7]} 11. Nh2 {[%clk
0:02:54.8]} 11... e5 {[%clk 0:03:03.8]} 12. f4 {[%clk 0:02:54.9]} 12... f5
{[%clk 0:03:03.8]} 13. Rae1 {[%clk 0:02:49]} 13... exf4 {[%clk 0:02:54.3]} 14.
Bxf4 {[%clk 0:02:48.7]} 14... g5 {[%clk 0:02:50.4]} 15. Be3 {[%clk 0:02:37.4]}
15... f4 {[%clk 0:02:51.4]} 16. Bf2 {[%clk 0:02:38.9]} 16... Ne5 {[%clk
0:02:48.6]} 17. Rd1 {[%clk 0:02:28.6]} 17... Be6 {[%clk 0:02:37.2]} 18. b3
{[%clk 0:02:27.8]} 18... Ng6 {[%clk 0:02:27]} 19. d4 {[%clk 0:02:26.9]} 19...
cxd4 {[%clk 0:02:23.4]} 20. Bxd4 {[%clk 0:02:28.8]} 20... Bxd4+ {[%clk
0:02:00.6]} 21. Qxd4 {[%clk 0:02:30.7]} 21... Qxd4+ {[%clk 0:02:01.2]} 22. Rxd4
{[%clk 0:02:31.6]} 22... Ne5 {[%clk 0:02:02.2]} 23. Nf3 {[%clk 0:02:28.5]} 23...
Nxf3+ {[%clk 0:02:01.9]} 24. Rxf3 {[%clk 0:02:30.4]} 24... Rad8 {[%clk
0:01:58.7]} 25. Rfd3 {[%clk 0:02:30.4]} 25... Rxd4 {[%clk 0:01:56]} 26. Rxd4
{[%clk 0:02:32.3]} 26... Kf7 {[%clk 0:01:31.8]} 27. Rd6 {[%clk 0:02:21.7]} 27...
Rc8 {[%clk 0:01:32.3]} 28. e5 {[%clk 0:02:13.1]} 28... Ke7 {[%clk 0:01:32.2]}
29. Ne4 {[%clk 0:02:12.4]} 29... h6 {[%clk 0:01:32.8]} 30. Kf2 {[%clk
0:02:06.9]} 30... c5 {[%clk 0:01:21]} 31. c3 {[%clk 0:01:50.8]} 31... Rf8 {[%clk
0:01:08.8]} 32. Nd2 {[%clk 0:00:59.6]} 32... Rf5 {[%clk 0:00:56.7]} 33. Nf3
{[%clk 0:01:00.5]} 33... h5 {[%clk 0:00:37.1]} 34. Rc6 {[%clk 0:00:53.1]} 34...
Kd7 {[%clk 0:00:26.1]} 35. Rd6+ {[%clk 0:00:52.5]} 35... Ke7 {[%clk 0:00:27.6]}
36. Rc6 {[%clk 0:00:54.1]} 36... Bd5 {[%clk 0:00:16.3]} 37. Rc7+ {[%clk
0:00:18.9]} 37... Ke6 {[%clk 0:00:17]} 38. c4 {[%clk 0:00:18.7]} 38... Bxf3
{[%clk 0:00:13.6]} 39. gxf3 {[%clk 0:00:19.6]} 39... Rxe5 {[%clk 0:00:13.7]} 40.
Rxa7 {[%clk 0:00:20.9]} 40... Kf5 {[%clk 0:00:12]} 41. Rb7 {[%clk 0:00:20.2]}
41... Re6 {[%clk 0:00:11.6]} 42. a4 {[%clk 0:00:21.3]} 42... Ke5 {[%clk
0:00:10.6]} 43. Rd7 {[%clk 0:00:21.6]} 43... Rd6 {[%clk 0:00:07.6]} 44. Re7+
{[%clk 0:00:22.4]} 44... Kf5 {[%clk 0:00:07.8]} 45. Rf7+ {[%clk 0:00:16.5]}
45... Ke5 {[%clk 0:00:02.4]} 46. Re7+ {[%clk 0:00:13.4]} 46... Re6 {[%clk
0:00:03.4]} 47. Rg7 {[%clk 0:00:12.3]} 47... Kf5 {[%clk 0:00:04.5]} 48. Rf7+
{[%clk 0:00:12.9]} 48... Ke5 {[%clk 0:00:04.9]} 49. Rg7 {[%clk 0:00:14.1]} 49...
Kf6 {[%clk 0:00:06.4]} 50. Rb7 {[%clk 0:00:15]} 50... Rd6 {[%clk 0:00:07]} 51.
Ke2 {[%clk 0:00:15.7]} 51... Ke5 {[%clk 0:00:07.9]} 52. Rg7 {[%clk 0:00:16.3]}
52... Kf6 {[%clk 0:00:08]} 53. Rb7 {[%clk 0:00:17.6]} 53... Kf5 {[%clk
0:00:08.6]} 54. a5 {[%clk 0:00:16.4]} 54... bxa5 {[%clk 0:00:08.9]} 55. Rb5
{[%clk 0:00:18.3]} 55... Rc6 {[%clk 0:00:06.8]} 56. Rxa5 {[%clk 0:00:19.5]}
56... Ke5 {[%clk 0:00:07.3]} 57. Kd3 {[%clk 0:00:18.9]} 57... Kd6 {[%clk
0:00:02.1]} 58. Ke4 {[%clk 0:00:19.4]} 58... Kc7 {[%clk 0:00:02.4]} 59. Kf5
{[%clk 0:00:14.6]} 59... Kd6 {[%clk 0:00:03.9]} 60. Kxg5 {[%clk 0:00:15.6]}
60... Ke5 {[%clk 0:00:05.4]} 61. Kxh5 {[%clk 0:00:14.2]} 61... Kd4 {[%clk
0:00:06.5]} 62. Kg4 {[%clk 0:00:13.5]} 62... Ke3 {[%clk 0:00:07.9]} 63. h4
{[%clk 0:00:11.6]} 63... Rg6+ {[%clk 0:00:09.2]} 64. Kf5 {[%clk 0:00:13]} 64...
Rh6 {[%clk 0:00:10.2]} 65. Kg5 {[%clk 0:00:14.3]} 65... Rb6 {[%clk 0:00:11.6]}
66. Rb5 {[%clk 0:00:14.8]} 66... Rb8 {[%clk 0:00:09.2]} 67. Rxb8 {[%clk
0:00:15.4]} 1-0